Cogmind - Beta 11.1 @@@ ROGUE MODE // 2022.09.26 @ 16:05:51 Player: HeartGrenade Result: Destroyed by Y-64 Sentinel with Wave Gun Performance ------------- Evolutions (4) 2000 Regions Visited (14) 2800 Robots Destroyed (131) 655 Value Destroyed (4525) 4525 Prototype IDs (25) 500 Alien Tech Used (0) 0 Bonus (2584) 2584 TOTAL SCORE: 13064 Bonus ------- High Alert Combat Kills 11 Follower Combat Kills 259 Met Data Miner 300 Met Imprinter 300 Destroyed Z-Imprinter 1000 Triggered Deep Caves Wall 500 Exposed GOLEM Chamber 500 Friendly Fire -286 Cogmind --------- Core Integrity 0/850 Matter 246/300 Energy 98/100 System Corruption 15% Temperature Cool (9) Movement Core (50) Location -5/Proximity Caves Parts ------- > --- POWER (2) -------- (None) > --- PROPULSION (4) --- Assembled Alloy Leg > --- UTILITY (7) ------ GOLEM Unit > --- WEAPON (2) ------- (None) > --- INVENTORY (5) ---- Zionite Biocell (600) Authchip [Armor] Power Maul Peak State ------------ > --- POWER ------------ Reinforced Deuterium Engine Enhanced Nuclear Core > --- PROPULSION ------- Armored Treads Medium Treads Medium Treads Medium Treads > --- UTILITY ---------- Experimental Heat Sink Improved Cooling System High-capacity Storage Unit Machine Analyzer Zionite Light Carapace Hardened Medium Armor Plating Experimental Thermal Shield > --- WEAPON ----------- Zionite Laser-M Zionite Laser-M > --- INVENTORY -------- Zionite Light DM Reactor Wheel Experimental Heat Sink Improved Cooling System Compact Battery Energy Well Enhanced Optical Array Seismic Detector Zionite Weapon Casing Authchip [Armor] Zionite Phaser-S Improved EM Pulse Cannon Proton Cannon Proton Cannon Improved Grenade Launcher RU-N14's Throwing Claymores RU-N14's Throwing Claymores RU-N14's Throwing Claymores RU-N14's Throwing Claymores Power Maul [Rating: 83] Favorites ----------- Power Reinforced Deuterium Engine Engine Reinforced Deuterium Engine Power Core Enhanced Nuclear Core Reactor Zionite Light DM Reactor Propulsion Light Treads Treads Light Treads Leg Assembled Alloy Leg Wheel Wheel Utility High-capacity Storage Unit Device Improved Cooling System Storage High-capacity Storage Unit Processor Advanced Targeting Computer Hackware Hacking Suite Protection Heavy Armor Plating Weapon Improved Spread Laser Energy Gun Improved Spread Laser Energy Cannon Phase Cannon Ballistic Gun Heavy Assault Rifle Launcher Grenade Launcher Special Weapon RU-N14's Throwing Claymores Impact Weapon Power Maul Build | -11 -10 -9 -9 -8 -7 -7 -7 -7 -6 -6 -6 -6 -6 -5 ------- Run | Scr Mat Mat Min Mat Fac Low Low Dat Pro Fac Low Zio Dee Pro Slots Evolved 8 | . . 2 . 2 2 . . . . 2 . . . . Power 1 | . . . . . . . . . . 1 . . . . Propulsion 2 | . . 1 . 1 . . . . . . . . . . Utility 5 | . . 1 . 1 2 . . . . 1 . . . . Weapon . | . . . . . . . . . . . . . . . Parts Attached 189 | 3 10 11 9 30 37 7 7 2 16 15 1 4 36 1 Power 13 | 1 1 2 . 2 1 . 1 . 1 1 . . 3 . Engine 8 | 1 1 2 . 2 . . . . 1 . . . 1 . Core 3 | . . . . . 1 . 1 . . 1 . . . . Reactor 2 | . . . . . . . . . . . . . 2 . Propulsion 33 | 2 . 5 . 8 9 . . . 2 6 . . 1 . Treads 30 | 2 . 5 . 7 9 . . . 2 5 . . . . Leg . | . . . . . . . . . . . . . . . Wheel 3 | . . . . 1 . . . . . 1 . . 1 . Hover . | . . . . . . . . . . . . . . . Flight . | . . . . . . . . . . . . . . . Utility 58 | . 3 1 . 8 13 4 3 . 5 5 . . 15 1 Device 22 | . 1 . . 1 4 2 3 . 4 2 . . 4 1 Storage 4 | . . 1 . 1 1 . . . . . . . 1 . Processor 8 | . 1 . . 1 4 1 . . . 1 . . . . Hackware 2 | . . . . . 1 . . . . 1 . . . . Protection 22 | . 1 . . 5 3 1 . . 1 1 . . 10 . Artifact . | . . . . . . . . . . . . . . . Weapon 85 | . 6 3 9 12 14 3 3 2 8 3 1 4 17 . Energy Gun 37 | . 1 . 1 6 7 1 2 2 5 2 . 1 9 . Energy Cannon 5 | . . . . . . . . . . . 1 1 3 . Ballistic Gun 14 | . 5 3 3 2 . . . . . . . 1 . . Ballistic Cannon . | . . . . . . . . . . . . . . . Launcher 9 | . . . 2 2 . 1 1 . 2 . . . 1 . Special Weapon 4 | . . . . . . . . . . . . . 4 . Impact Weapon 16 | . . . 3 2 7 1 . . 1 1 . 1 . . Slashing Weapon . | . . . . . . . . . . . . . . . Piercing Weapon . | . . . . . . . . . . . . . . . Special Melee Weapon . | . . . . . . . . . . . . . . . Unidentified Prototypes 13 | . . . . 2 . . . . 1 1 . . 9 . Corrupted Parts 1 | . . . . . . . . . . . . . . 1 System Corruption 4 | . . . . . . . . . . . . . . 4 Parts Lost 50 | . 2 2 1 9 1 4 1 . 5 2 . . 23 . Power 5 | . 1 . . 1 . . . . 1 . . . 2 . Propulsion 14 | . . 2 . 4 . . . . 2 1 . . 5 . Utility 20 | . . . . 3 1 3 1 . 1 . . . 11 . Weapon 11 | . 1 . 1 1 . 1 . . 1 1 . . 5 . Highest Loss Streak 7 | . 1 2 1 3 1 4 1 . 2 1 . . 7 . To Critical Strikes 1 | . . . . . . . . . . . . . 1 . Average Slot Usage (%) 89 | . 75 97 100 94 100 96 95 77 90 90 93 92 69 13 Engine 5 | . 11 11 11 8 4 . . . 3 6 6 6 4 . Core 3 | . . . . . 2 7 6 7 3 5 6 6 4 . Treads 26 | . 28 32 33 33 30 30 30 30 29 23 26 26 12 . Device 11 | . . . . 4 12 14 15 15 14 19 20 20 11 6 Storage 6 | . . 9 11 9 7 7 7 7 7 6 6 6 6 . Processor 8 | . . 11 11 9 16 10 7 7 1 5 6 6 3 . Protection 9 | . 11 11 11 10 7 8 10 7 12 5 6 6 12 . Energy Gun 9 | . 5 . 6 12 11 7 15 1 14 12 10 5 6 . Ballistic Gun 3 | . 17 22 10 5 . . . . . . . . . . Impact Weapon 1 | . . . 2 . 3 6 . . . . . 4 . . Naked Turns 10 | . . . . . . . . . . . . . 10 . Heaviest Build 94 | 5 10 54 54 63 72 70 72 63 86 90 94 94 92 1 Greatest Support 104 | 3 40 60 60 80 96 96 96 96 104 104 104 104 104 3 Greatest Overweight (x) 15 | 1 2 1 . 5 . . . . 1 8 . . 15 . Average Overweight (x) . | . . . . . . . . . . . . . 1 . Largest Inventory Capacity 20 | 5 5 20 20 20 20 20 20 20 20 20 20 20 20 5 Average Capacity 18 | 5 5 17 20 20 20 20 20 20 20 20 20 20 19 5 Most Carried 20 | 3 5 15 16 20 20 20 20 20 20 20 20 20 20 3 Average Carried 17 | 2 3 10 15 18 19 19 19 20 19 19 19 19 17 3 Final Capacity 20 | 5 5 20 20 20 20 20 20 20 20 20 20 20 5 5 Final Carried 20 | 3 5 15 16 20 20 18 20 20 20 20 20 20 5 3 Class Distribution -------------------- 63% | Scavenger-Mutant 36% | Mutant Dominant Class ---------------- Mutant | -10/Materials Scavenger-Mutant | -9/Materials Scavenger-Mutant | -9/Mines Scavenger-Mutant | -8/Materials Scavenger-Mutant | -7/Factory Mutant | -7/Lower Caves Mutant | -7/Lower Caves Mutant | -7/Data Miner Mutant | -6/Proximity Caves Scavenger-Mutant | -6/Factory Scavenger-Mutant | -6/Lower Caves Scavenger-Mutant | -6/Zion Scavenger-Mutant | -6/Deep Caves Mutant | -5/Proximity Caves Resources | -11 -10 -9 -9 -8 -7 -7 -7 -7 -6 -6 -6 -6 -6 -5 ----------- Run | Scr Mat Mat Min Mat Fac Low Low Dat Pro Fac Low Zio Dee Pro Matter Collected 3259 | 164 290 463 259 663 362 125 115 . 302 121 70 30 295 . Remotely . | . . . . . . . . . . . . . . . Salvage Created 4786 | . 547 758 161 1301 587 15 73 . 432 100 4 . 808 . Parts 268 | . 32 53 14 78 38 . 7 . 16 8 1 . 21 . Haulers Intercepted 3 | . 1 . . 2 . . . . . . . . . . Recyclers Shooed . | . . . . . . . . . . . . . . . Parts Field Recycled . | . . . . . . . . . . . . . . . Retrieved Matter . | . . . . . . . . . . . . . . . Parts Self-Destructed 42 | . . . . . . 10 9 . 23 . . . . . Prevented 6 | . . . . . . 3 . . 3 . . . . . Kills | -11 -10 -9 -9 -8 -7 -7 -7 -7 -6 -6 -6 -6 -6 -5 ------- Run | Scr Mat Mat Min Mat Fac Low Low Dat Pro Fac Low Zio Dee Pro Combat Hostiles Destroyed 146 | . 11 17 7 26 15 . 4 . 12 3 1 . 50 . Guns 95 | . 11 17 2 25 15 . 2 . 8 3 1 . 11 . Cannons 6 | . . . . . . . . . . . . . 6 . AOE 44 | . . . 5 1 . . 2 . 4 . . . 32 . Classes Destroyed 19 | . 4 2 2 4 2 . . . 1 . 1 . 3 . Worker 10 | . 1 1 2 3 2 . . . . 1 . . . . Builder 4 | . . . . 1 3 . . . . . . . . . Tunneler 4 | . 1 2 . . 1 . . . . . . . . . Hauler 3 | . 1 . . 2 . . . . . . . . . . Recycler 2 | . . . . 2 . . . . . . . . . . Minesweeper 1 | . . . . . . . . . 1 . . . . . Mechanic 1 | . . . . 1 . . . . . . . . . . Swarmer 19 | . . 2 4 6 2 . 3 . 2 . . . . . Grunt 54 | . 11 12 1 14 8 . . . 8 . . . . . Brawler 3 | . . . 1 . . . . . 2 . . . . . Sentry 9 | . . 3 . 4 1 . 1 . . . . . . . Specialist 2 | . . . . 2 . . . . . . . . . . Hunter 1 | . . . . . 1 . . . . . . . . . Programmer 6 | . . . . . 3 . . . . 3 . . . . Z-Light 6 | . . . . . . . . . . . . . 6 . Thief 1 | . . . . . . . . . . . 1 . . . Assembler 2 | . . . . . . . . . . . . . 2 . Assembled 43 | . . . 1 . . . . . . . . . 42 . Golem 1 | . . . . . . . . . . . . . 1 . Thug 1 | . . . . . . . . . . . . . 1 . Best Kill Streak 36 | . 6 7 3 6 5 . 3 . 5 1 1 . 36 . Combat Bots Only 35 | . 6 6 3 6 4 . 3 . 5 1 1 . 35 . Max Kills in Single Turn 10 | . 2 2 2 2 1 . 1 . 2 1 1 . 10 . Gunslinging 1 | . . 1 . . . . . . . . . . . . Exploded 9 | . . . 2 1 . . 1 . 2 . . . 9 . Melee . | . . . . . . . . . . . . . . . Uniques/NPCs Destroyed 1 | . . . . . . . . . . . . . 1 . Z-Imprinter (-6/Deep Caves) Combat | -11 -10 -9 -9 -8 -7 -7 -7 -7 -6 -6 -6 -6 -6 -5 -------- Run | Scr Mat Mat Min Mat Fac Low Low Dat Pro Fac Low Zio Dee Pro Damage Taken 9651 | . 584 693 164 1432 949 367 250 . 805 374 38 . 3972 23 Core 1382 | . 69 83 48 131 79 41 15 . 60 15 . . 818 23 Absorbed by Shields . | . . . . . . . . . . . . . . . Redirected to Shielding 577 | . 13 16 9 13 . . . . . . . . 526 . Regen/Repaired (Parts) 927 | . . . . 225 . . . . . 702 . . . . Core Remaining (%) 77 | 100 72 . 67 76 . . . . 72 . . . . . Volleys Fired 352 | . 40 58 12 81 44 2 7 . 28 11 9 . 60 . Largest 2 | . 2 2 2 2 2 1 2 . 2 2 2 . 2 . Hottest 155 | . 70 46 86 150 155 30 150 . 150 155 155 . 150 . Shots Fired 662 | . 75 117 20 162 83 2 11 . 52 23 12 . 105 . Gun 617 | . 75 117 16 160 83 . 8 . 47 23 5 . 83 . Cannon 13 | . . . . . . . . . . . 7 . 6 . Launcher 17 | . . . 4 2 . 2 3 . 5 . . . 1 . Special 15 | . . . . . . . . . . . . . 15 . Kinetic 272 | . 62 117 9 69 . . . . . . . . 15 . Thermal 349 | . 13 . 7 91 83 . 8 . 47 23 12 . 65 . Explosive 32 | . . . 4 2 . 2 3 . 5 . . . 16 . Electromagnetic 6 | . . . . . . . . . . . . . 6 . Phasic 3 | . . . . . . . . . . . . . 3 . Robot Hit Streak 32 | . 30 12 10 32 27 . 12 . 12 5 8 . 9 . Robot Miss Streak 8 | . 2 3 2 5 6 . 2 . 8 4 2 . 7 . Penetration Max . | . . . . . . . . . . . . . . . Secondary Targets 7 | . . 2 . . 1 . . . . . . . 4 . Max Gunslinging Chain 1 | . . 1 . . 1 . . . . . . . 1 . Shots Hit Robots 498 | . 58 79 13 129 78 1 4 . 47 22 5 . 62 . Core Hits 459 | . 26 31 11 121 88 1 16 . 64 13 7 . 81 . Critical Kills . | . . . . . . . . . . . . . . . Critical Parts Destroyed 2 | . . 1 . . 1 . . . . . . . . . Critical Strikes 6 | . 1 1 . 2 1 . . . . . . . 1 . Burn 3 | . 1 . . 2 . . . . . . . . . . Destroy 1 | . . 1 . . . . . . . . . . . . Smash 1 | . . . . . 1 . . . . . . . . . Sever 1 | . . . . . . . . . . . . . 1 . Melee Attacks 45 | . . . 6 2 13 4 . . 1 1 . 18 . . Impact 45 | . . . 6 2 13 4 . . 1 1 . 18 . . Slashing . | . . . . . . . . . . . . . . . Piercing . | . . . . . . . . . . . . . . . Sneak Attacks 1 | . . . . . 1 . . . . . . . . . Combat Hostiles . | . . . . . . . . . . . . . . . Follow-up Attacks . | . . . . . . . . . . . . . . . Damage Inflicted 14919 | . 684 1122 435 2258 1879 105 314 . 1429 444 124 . 6125 . Guns 8604 | . 684 1117 144 2088 1695 . 81 . 862 444 124 . 1365 . Cannons 110 | . . . . . . . . . . . . . 110 . Explosions 5445 | . . . 226 170 87 . 233 . 567 . . . 4162 . Melee 267 | . . . 65 . 97 105 . . . . . . . . Ramming 5 | . . 5 . . . . . . . . . . . . Kinetic 2725 | . 556 1117 85 745 . . . . . . . . 222 . Thermal 5933 | . 128 . 59 1343 1782 . 81 . 862 444 124 . 1110 . Explosive 5358 | . . . 226 170 . . 233 . 567 . . . 4162 . Electromagnetic 110 | . . . . . . . . . . . . . 110 . Impact 267 | . . . 65 . 97 105 . . . . . . . . Slashing 488 | . . . . . . . . . . . . . 488 . Piercing . | . . . . . . . . . . . . . . . Phasic 33 | . . . . . . . . . . . . . 33 . Highest Corruption 15 | . 1 3 8 . 3 11 11 11 11 3 3 3 11 15 Average Corruption 6 | . 1 2 5 . 2 5 11 11 11 2 3 3 11 15 Corruption Purged . | . . . . . . . . . . . . . . . Corruption Blocked . | . . . . . . . . . . . . . . . Effects 139 | . 3 5 13 . 11 11 28 4 30 11 5 1 14 3 Message Errors 25 | . . . 6 . 1 1 4 . 5 2 1 1 3 1 Matter Fused 36 | . 1 1 3 . 4 3 6 1 11 4 . . 2 . Heat Flow Errors 21 | . 1 . 1 . 4 3 4 . 3 1 . . 2 2 Energy Discharges 18 | . . . 2 . . 2 4 1 3 1 3 . 2 . Parts Rejected 3 | . . . . . . . 2 . 1 . . . . . Data Loss (minor) 17 | . 1 . 1 . . . 6 2 4 2 . . 1 . Data Loss (major) 7 | . . 1 . . . 1 . . 2 . . . 3 . Misfires 7 | . . 2 . . 2 . . . 1 1 1 . . . Alerts 4 | . . . . . . 1 2 . . . . . 1 . Weapon Failures 1 | . . 1 . . . . . . . . . . . . Overload Shots . | . . . . . . . . . . . . . . . Overflow Damage 179 | . . . . 2 66 1 2 . . . . . 108 . Projectiles 52 | . . . . . . . . . . . . . 52 . Explosions 61 | . . . . 2 . 1 2 . . . . . 56 . Melee 66 | . . . . . 66 . . . . . . . . . Knockbacks 2 | . . 1 1 . . . . . . . . . . . Impact 2 | . . 1 1 . . . . . . . . . . . Kinetic . | . . . . . . . . . . . . . . . Secondary . | . . . . . . . . . . . . . . . Self-Inflicted Damage 13 | . . . . . . 13 . . . . . . . . Shots 1 | . . . . . . 1 . . . . . . . . Rammed 1 | . . 1 . . . . . . . . . . . . Targets Rammed 1 | . . 1 . . . . . . . . . . . . Kicked . | . . . . . . . . . . . . . . . Crushed . | . . . . . . . . . . . . . . . Highest Temperature 333 | . 213 19 208 204 333 147 192 . 190 177 . . 205 178 Average Temperature 67 | . 52 9 48 52 92 59 66 . 68 113 . . 52 96 Received Heat Transfer 2642 | . 315 354 6 531 246 . 30 . 306 9 . . 836 9 Effects 4 | . 2 . . . 2 . . . . . . . . . Interference 4 | . 2 . . . 2 . . . . . . . . . Siege Activations . | . . . . . . . . . . . . . . . Robots Corrupted 1 | . . . . . . . . . . . . . 1 . Combat Hostiles 1 | . . . . . . . . . . . . . 1 . Parts Fried . | . . . . . . . . . . . . . . . Impact Corruptions 1 | . . . . . 1 . . . . . . . . . Robots Melted . | . . . . . . . . . . . . . . . Combat Hostiles . | . . . . . . . . . . . . . . . Parts Melted 11 | . 1 . . 1 2 . . . . 1 . . 6 . Heat Transferred 7471 | . 444 . 148 2289 1755 . 65 . 720 505 195 . 1350 . Parts Sabotaged . | . . . . . . . . . . . . . . . Parts Stolen . | . . . . . . . . . . . . . . . Parts Stripped . | . . . . . . . . . . . . . . . Power Chain Reactions . | . . . . . . . . . . . . . . . Missiles Intercepted . | . . . . . . . . . . . . . . . Alert | -11 -10 -9 -9 -8 -7 -7 -7 -7 -6 -6 -6 -6 -6 -5 ------- Run | Scr Mat Mat Min Mat Fac Low Low Dat Pro Fac Low Zio Dee Pro Peak Influence 433 | . 258 433 306 332 262 . . . . 154 . . . . Initial 119 | . . 59 109 40 65 . . . . 119 . . . . Average 128 | . 133 206 224 148 96 . . . . 60 . . . . Maximum Alert Level 2 | . 1 2 1 1 1 . . . . . . . . . Low Security (%) 75 | 100 64 37 19 74 92 . . . . 100 . . . . Level 1 24 | . 35 60 80 25 7 . . . . . . . . . Level 2 . | . . 1 . . . . . . . . . . . . Level 3 . | . . . . . . . . . . . . . . . Level 4 . | . . . . . . . . . . . . . . . Level 5 . | . . . . . . . . . . . . . . . High Security . | . . . . . . . . . . . . . . . Max Security . | . . . . . . . . . . . . . . . Squads Dispatched 20 | . 4 2 . 5 6 . . . . 3 . . . . Investigation 3 | . 2 . . . 1 . . . . . . . . . Extermination 5 | . . . . . 3 . . . . 2 . . . . Reinforcement 10 | . 2 2 . 4 2 . . . . . . . . . Assault 1 | . . . . . . . . . . 1 . . . . Garrison 1 | . . . . 1 . . . . . . . . . . Intercept . | . . . . . . . . . . . . . . . Searches Triggered . | . . . . . . . . . . . . . . . Data Miner Redirects 1 | . . . . . . . . . . 1 . . . . Construction Impeded 1 | . . . . 1 . . . . . . . . . . Haulers Reinforced . | . . . . . . . . . . . . . . . Active Scanning Responses . | . . . . . . . . . . . . . . . Cargo Convoy Interrupts . | . . . . . . . . . . . . . . . Stealth | -11 -10 -9 -9 -8 -7 -7 -7 -7 -6 -6 -6 -6 -6 -5 --------- Run | Scr Mat Mat Min Mat Fac Low Low Dat Pro Fac Low Zio Dee Pro Distress Signals 3 | . . 1 . 2 . . . . . . . . . . Communications Jammed . | . . . . . . . . . . . . . . . Distress Signals . | . . . . . . . . . . . . . . . Times Spotted 221 | . 17 28 8 48 25 . 8 . 16 5 1 . 61 4 Peak Tracking Total 37 | . 8 4 4 7 6 . 6 . 3 2 1 . 37 6 Tactical Retreats 14 | . . 2 1 4 . . 4 . 1 . . . 2 . Traps | -11 -10 -9 -9 -8 -7 -7 -7 -7 -6 -6 -6 -6 -6 -5 ------- Run | Scr Mat Mat Min Mat Fac Low Low Dat Pro Fac Low Zio Dee Pro Traps Triggered 10 | . 2 2 . . 5 . . . . 1 . . . . Indirectly . | . . . . . . . . . . . . . . . Trap Hack Attempts . | . . . . . . . . . . . . . . . Triggered . | . . . . . . . . . . . . . . . Disarmed . | . . . . . . . . . . . . . . . Reprogrammed . | . . . . . . . . . . . . . . . Reused . | . . . . . . . . . . . . . . . Traps Extracted . | . . . . . . . . . . . . . . . Installed . | . . . . . . . . . . . . . . . Triggered 2 | . . . . . . 1 . . 1 . . . . . Most Traps Carried 2 | . . . . . . . . . 2 2 . . . . Machines | -11 -10 -9 -9 -8 -7 -7 -7 -7 -6 -6 -6 -6 -6 -5 ---------- Run | Scr Mat Mat Min Mat Fac Low Low Dat Pro Fac Low Zio Dee Pro Machines Disabled 6 | . . . . . 3 1 . . . . . . 2 . Max in Single Turn 3 | . . . . . 3 1 . . . . . . 1 . Garrison Access 2 | . . . . . 1 . . . . 1 . . . . Machines Sabotaged . | . . . . . . . . . . . . . . . Garrisons Compromised 1 | . . . . . . . . . . 1 . . . . Overloaded Fab Kills . | . . . . . . . . . . . . . . . Hacking | -11 -10 -9 -9 -8 -7 -7 -7 -7 -6 -6 -6 -6 -6 -5 --------- Run | Scr Mat Mat Min Mat Fac Low Low Dat Pro Fac Low Zio Dee Pro Machines Accessed 45 | . 4 7 . 10 13 1 1 3 . 6 . . . . Terminals 25 | . 3 5 . 7 7 . . . . 3 . . . . Fabricators 3 | . . . . . 2 . . . . 1 . . . . Repair Stations 7 | . . 1 . 2 2 . . . . 2 . . . . Recycling Units 1 | . 1 . . . . . . . . . . . . . Scanalyzers 2 | . . 1 . 1 . . . . . . . . . . Garrison Access 2 | . . . . . 2 . . . . . . . . . Total Hacks 133 | . 10 22 . 37 28 1 1 21 . 13 . . . . Successful 81 | . 6 9 . 27 8 1 1 21 . 8 . . . . Failed 52 | . 4 13 . 10 20 . . . . 5 . . . . Catastrophic 8 | . . . . 1 6 . . . . 1 . . . . Database Lockouts . | . . . . . . . . . . . . . . . Manual 48 | . 10 11 . 16 10 . . . . 1 . . . . Terminals 73 | . 9 19 . 25 16 . . . . 4 . . . . Fabricators 9 | . . . . . 6 . . . . 3 . . . . Repair Stations 13 | . . 1 . 4 2 . . . . 6 . . . . Recycling Units 1 | . 1 . . . . . . . . . . . . . Scanalyzers 10 | . . 2 . 8 . . . . . . . . . . Garrison Access 4 | . . . . . 4 . . . . . . . . . Terminal Hacks 46 | . 5 5 . 10 2 1 1 21 . 1 . . . . Record 5 | . . . . 1 . 1 . 3 . . . . . . Part Schematic 13 | . 2 . . 1 . . . 10 . . . . . . Robot Schematic 5 | . . . . . . . . 5 . . . . . . Robot Analysis 3 | . 2 1 . . . . . . . . . . . . Prototype ID Bank 3 | . . . . . . . . 3 . . . . . . Open Door 1 | . . . . . . . 1 . . . . . . . Branch Access Points 3 | . . 1 . 1 . . . . . 1 . . . . Emergency Access Points 1 | . . . . 1 . . . . . . . . . . Terminal Index 2 | . . . . 1 1 . . . . . . . . . Unreport Threat 3 | . . . . 3 . . . . . . . . . . Locate Traps 1 | . . . . . 1 . . . . . . . . . Hauler Manifests 3 | . 1 1 . 1 . . . . . . . . . . Zone Layout 3 | . . 2 . 1 . . . . . . . . . . Fabricator Hacks 4 | . . . . . 3 . . . . 1 . . . . Network Status 3 | . . . . . 2 . . . . 1 . . . . Load Schematic 1 | . . . . . 1 . . . . . . . . . Repair Station Hacks 10 | . . . . 4 . . . . . 6 . . . . Scan Component 5 | . . . . 2 . . . . . 3 . . . . Repair 5 | . . . . 2 . . . . . 3 . . . . Recycling Unit Hacks . | . . . . . . . . . . . . . . . Scanalyzer 10 | . . 2 . 8 . . . . . . . . . . Insert Component 5 | . . 1 . 4 . . . . . . . . . . Analyze 5 | . . 1 . 4 . . . . . . . . . . Garrison Access Hacks 1 | . . . . . 1 . . . . . . . . . Seal Access 1 | . . . . . 1 . . . . . . . . . Unauthorized Hacks 10 | . 1 2 . 5 2 . . . . . . . . . Terminals 8 | . . 2 . 5 1 . . . . . . . . . Botnet 7 | . . 2 . 4 1 . . . . . . . . . Operators 1 | . . . . 1 . . . . . . . . . . Fabricators 1 | . . . . . 1 . . . . . . . . . Recompile 1 | . . . . . 1 . . . . . . . . . Repair Stations . | . . . . . . . . . . . . . . . Recycling Units 1 | . 1 . . . . . . . . . . . . . Tunnel 1 | . 1 . . . . . . . . . . . . . Scanalyzers . | . . . . . . . . . . . . . . . Garrison Access . | . . . . . . . . . . . . . . . Data Cores Recovered . | . . . . . . . . . . . . . . . Used . | . . . . . . . . . . . . . . . Hacking Detections 38 | . 3 7 . 9 13 . . . . 6 . . . . Full Trace Events 1 | . . . . 1 . . . . . . . . . . Feedback Events . | . . . . . . . . . . . . . . . Feedback Blocked . | . . . . . . . . . . . . . . . Robot Schematics Acquired 8 | . . . . . . . . 5 . . . 3 . . Robots Built . | . . . . . . . . . . . . . . . Authchips . | . . . . . . . . . . . . . . . Time . | . . . . . . . . . . . . . . . Total Robot Build Rating . | . . . . . . . . . . . . . . . Part Schematics Acquired 30 | . 2 1 . 4 . . . 10 . . . 13 . . Parts Built . | . . . . . . . . . . . . . . . Authchips . | . . . . . . . . . . . . . . . Time . | . . . . . . . . . . . . . . . Total Part Build Rating . | . . . . . . . . . . . . . . . Parts Repaired 5 | . . . . 2 . . . . . 3 . . . . Time 165 | . . . . 64 . . . . . 101 . . . . Parts Recycled . | . . . . . . . . . . . . . . . Recycled Matter . | . . . . . . . . . . . . . . . Retrieved Matter . | . . . . . . . . . . . . . . . Retrieved Components . | . . . . . . . . . . . . . . . Parts Scanalyzed 5 | . . 1 . 4 . . . . . . . . . . Part Schematics Acquired 4 | . . 1 . 3 . . . . . . . . . . Parts Damaged . | . . . . . . . . . . . . . . . Bothacking | -11 -10 -9 -9 -8 -7 -7 -7 -7 -6 -6 -6 -6 -6 -5 ------------ Run | Scr Mat Mat Min Mat Fac Low Low Dat Pro Fac Low Zio Dee Pro Used RIF Installer . | . . . . . . . . . . . . . . . Robots Hacked . | . . . . . . . . . . . . . . . Non-combat . | . . . . . . . . . . . . . . . Combat . | . . . . . . . . . . . . . . . Robot Hacks Applied . | . . . . . . . . . . . . . . . Relay Couplers Released 2 | . . . . . . . . . . 2 . . . . Machine Destruction 2 | . . . . . . . . . . 2 . . . . Fabnet Peak Effective % . | . . . . . . . . . . . . . . . Robots Rewired . | . . . . . . . . . . . . . . . Allies Hacked . | . . . . . . . . . . . . . . . Hacks Repelled . | . . . . . . . . . . . . . . . Allies | -11 -10 -9 -9 -8 -7 -7 -7 -7 -6 -6 -6 -6 -6 -5 -------- Run | Scr Mat Mat Min Mat Fac Low Low Dat Pro Fac Low Zio Dee Pro Total Allies 12 | . . . . . . . . . 1 8 . 3 . . Largest Group 4 | . . . . . . . . . 1 4 . 3 3 . Highest-Rated Group 96 | . . . . . . . . . 96 84 . 93 93 . Highest-Rated Ally 96 | . . . . . . . . . 96 31 . 31 31 . Total Orders . | . . . . . . . . . . . . . . . Ally Attacks 130 | . . . . . . . . . 28 15 . . 87 . Total Damage 1888 | . . . . . . . . . 849 141 . . 898 . Kills 9 | . . . . . . . . . 5 1 . . 3 . Allies Corrupted . | . . . . . . . . . . . . . . . Allies Melted . | . . . . . . . . . . . . . . . Intel | -11 -10 -9 -9 -8 -7 -7 -7 -7 -6 -6 -6 -6 -6 -5 ------- Run | Scr Mat Mat Min Mat Fac Low Low Dat Pro Fac Low Zio Dee Pro Robot Analysis Total 3 | . 2 1 . . . . . . . . . . . . Derelict Logs Recovered 4 | . . . . . . 1 1 . 1 . . 1 . . Drone Launches . | . . . . . . . . . . . . . . . Drone Recoveries . | . . . . . . . . . . . . . . . Exploration | -11 -10 -9 -9 -8 -7 -7 -7 -7 -6 -6 -6 -6 -6 -5 ------------- Run | Scr Mat Mat Min Mat Fac Low Low Dat Pro Fac Low Zio Dee Pro Turns Passed 12771 | 36 584 869 423 1753 2157 507 814 144 766 1131 398 1187 1914 88 Spaces Moved 6351 | 41 316 388 225 829 1176 282 473 87 374 545 232 673 630 80 Core 339 | 41 150 . . . . . . . . . . . 68 80 Treads 5944 | . 166 388 225 778 1176 282 473 87 374 528 232 673 562 . Legs . | . . . . . . . . . . . . . . . Wheels 68 | . . . . 51 . . . . . 17 . . . . Hover . | . . . . . . . . . . . . . . . Flight . | . . . . . . . . . . . . . . . Fastest Speed 50 | 50 50 160 160 155 160 162 162 162 162 162 162 162 50 50 Average Speed 169 | 71 128 163 160 161 160 162 162 162 167 177 162 162 262 50 Slowest Speed 800 | 100 160 240 160 320 162 162 162 162 243 243 162 162 800 50 Overloaded Moves . | . . . . . . . . . . . . . . . Propulsion Burnouts . | . . . . . . . . . . . . . . . Robots Hopped . | . . . . . . . . . . . . . . . Cave-ins Triggered 1 | . . . . . . 1 . . . . . . . . Exploration Rate (%) 47 | 3 57 43 50 70 33 44 67 68 53 16 46 83 67 14 Regions Visited 14 Branch Regions 9 Pre-discovered Areas 5 | . 1 . . . . . . 1 1 . . 2 . . Known Exits Taken 4 | . . 1 . . 1 . . . . 1 . 1 . . Unknown Exits Taken 10 | 1 1 . 1 1 . 1 1 1 1 . 1 . 1 . Scrap Searched 11 | . . . 1 . . 3 2 . . . 1 3 . 1 Spaces Dug 44 | . . . . 2 11 14 . . 1 1 7 2 6 . Terrain Destroyed 172 | . . . 15 13 26 26 21 . 32 1 7 2 29 . Melee 19 | . . . . 2 11 2 . . 1 1 . 2 . . Projectile 19 | . . . . . . . . . . . 7 . 12 . AOE 134 | . . . 15 11 15 24 21 . 31 . . . 17 . Terrain Rammed . | . . . . . . . . . . . . . . . Walls Destroyed . | . . . . . . . . . . . . . . . Machines Disabled . | . . . . . . . . . . . . . . . Actions | -11 -10 -9 -9 -8 -7 -7 -7 -7 -6 -6 -6 -6 -6 -5 --------- Run | Scr Mat Mat Min Mat Fac Low Low Dat Pro Fac Low Zio Dee Pro Total 7612 | 46 423 507 255 1082 1333 320 510 90 455 684 243 736 800 128 Wait 462 | . 46 28 2 95 30 26 14 . 29 99 . 28 18 47 Move 6336 | 40 315 387 224 828 1175 280 472 86 373 544 231 672 629 80 Hop . | . . . . . . . . . . . . . . . Pick Up 108 | 3 6 14 2 25 11 . 6 . 6 6 1 6 22 . Fast Attach 49 | 3 5 1 . 6 7 2 2 2 3 8 . 2 8 . Attach 50 | . 3 4 1 9 5 2 . . 4 4 . . 17 1 Detach 17 | . 2 1 . 2 3 . . . . 2 . . 7 . Swap 90 | . 2 6 8 15 25 3 5 . 9 3 1 2 11 . Drop 101 | . 4 7 . 19 20 . 4 2 2 6 1 8 28 . Fire 352 | . 40 58 12 81 44 2 7 . 28 11 9 . 60 . Melee 45 | . . . 6 2 13 4 . . 1 1 . 18 . . Ram . | . . . . . . . . . . . . . . . Kick . | . . . . . . . . . . . . . . . Crush 1 | . . 1 . . . . . . . . . . . . Escape Stasis 1 | . . . . . . 1 . . . . . . . . Rewire . | . . . . . . . . . . . . . . . Trap . | . . . . . . . . . . . . . . . Miscellaneous . | . . . . . . . . . . . . . . . Route ------- -11/Scrapyard -10/Materials (discovered 2 exits: *Mat / [*Min]) -9/Materials (discovered 3 exits: *Mat / *Min x2) -9/Mines (discovered 2 exits: *Mat x2) -8/Materials (discovered 2 exits: *Fac x2) -7/Factory (discovered 2 exits: *Sto / *Low) -7/Lower Caves -7/Lower Caves -7/Data Miner -6/Proximity Caves -6/Factory (discovered 3 exits: [*Fac] / *Low x2) -6/Lower Caves (discovered 2 exits: [*Low] / [*Zio]) -6/Zion (discovered 2 exits: *Dee / [*Pro]) -6/Deep Caves -5/Proximity Caves History --------- Turn | Location | Event 10 | -11/Scrapyard | Discovered new exit (range 16) 37 | -11/Scrapyard | Entered Materials 313 | -10/Materials | Build established: Mutant 346 | -10/Materials | Discovered new exit (range 6) 485 | -10/Materials | Discovered new exit (range 12) 621 | -10/Materials | Entered another Materials area 621 | -9/Materials | Evolved 2 slots: Propulsion x1, Utility x1 1071 | -9/Materials | Build established: Scavenger-Mutant 1260 | -9/Materials | Discovered new exit (range 17) 1330 | -9/Materials | Identified exit to Mines 1490 | -9/Materials | Entered Mines 1643 | -9/Mines | Discovered new exit (range 15) 1647 | -9/Mines | Excavation squad dispatched 1647 | -9/Mines | A large section of the Mines collapsed 1892 | -9/Mines | Discovered new exit (range 11) 1913 | -9/Mines | Entered Materials 1913 | -8/Materials | Evolved 2 slots: Propulsion x1, Utility x1 2102 | -8/Materials | Repaired Lgt. Treads 2356 | -8/Materials | Discovered new exit (range 9) 2528 | -8/Materials | Lost 3 parts (1p1n1u) 3080 | -8/Materials | Repaired Hrd. Medium Armor Plating 3188 | -8/Materials | Discovered new exit (range 14) 3481 | -8/Materials | Garrison activated, responded to threat 3666 | -8/Materials | Entered Factory 3666 | -7/Factory | Evolved 2 slots: Utility x2 4781 | -7/Factory | Discovered new exit (range 2) 5410 | -7/Factory | Identified exit to Storage 5429 | -7/Factory | Build established: Mutant 5514 | -7/Factory | Discovered new exit (range 9) 5526 | -7/Factory | Identified exit to Lower Caves 5823 | -7/Factory | Entered Lower Caves 6144 | -7/Lower Caves | Crushed by falling debris 6145 | -7/Lower Caves | System corruption reached 10% 6175 | -7/Lower Caves | Lost 4 parts (3u1w) 6210 | -7/Lower Caves | Encountered a Warlord checkpoint 6300 | -7/Lower Caves | Discovered new exit (range 10) 6330 | -7/Lower Caves | Entered another Lower Caves area 6332 | -7/Lower Caves | Attracted the attention of an 0b10 checkpoint 6876 | -7/Lower Caves | Encountered a Warlord checkpoint 7140 | -7/Lower Caves | Discovered new exit (range 2) 7144 | -7/Lower Caves | Entered Data Miner 7145 | -7/Data Miner | Discovered new exit (range 6) 7176 | -7/Data Miner | Met Data Miner 7207 | -7/Data Miner | Learned location of Section 7 (-2) 7207 | -7/Data Miner | Acquired the access code to Warlord's prototype stash 7228 | -7/Data Miner | Received God Mode back door access code from Data Miner 7288 | -7/Data Miner | Entered Proximity Caves 7389 | -6/Proximity Caves | Escorted by Enhanced Grunt 7700 | -6/Proximity Caves | Found Prototype Device 7701 | -6/Proximity Caves | Identified Exp. Thermal Shield 7786 | -6/Proximity Caves | Spotted B-75 Beast 8016 | -6/Proximity Caves | Discovered new exit (range 5) 8033 | -6/Proximity Caves | Learned location of Zion (-6) 8054 | -6/Proximity Caves | Entered Factory 8054 | -6/Factory | Evolved 2 slots: Power x1, Utility x1 8055 | -6/Factory | Identified exit to Lower Caves 8343 | -6/Factory | Build established: Scavenger-Mutant 8559 | -6/Factory | Repaired Hvy. Armor Plating 8816 | -6/Factory | Incoming assault squad redirected 8967 | -6/Factory | Discovered new exit (range 6) 9125 | -6/Factory | Repaired Arm. Treads 9171 | -6/Factory | Repaired Med. Treads 9185 | -6/Factory | Entered Lower Caves 9206 | -6/Lower Caves | Encountered a Warlord checkpoint 9563 | -6/Lower Caves | A Derelict revealed a hidden shortcut to a safe place 9578 | -6/Lower Caves | Discovered new exit (range 9) 9583 | -6/Lower Caves | Entered Zion 9675 | -6/Zion | System corruption cleaned by Quarantine Array 9767 | -6/Zion | Discovered new exit (range 12) 9823 | -6/Zion | Gained Derelict followers 10379 | -6/Zion | Identified exit to Deep Caves 10411 | -6/Zion | Learned location of Quarantine (-2) 10651 | -6/Zion | Found Prototype Special Weapon 10654 | -6/Zion | Found Prototype Special Weapon 10657 | -6/Zion | Found Prototype Special Weapon 10661 | -6/Zion | Found Prototype Special Weapon 10761 | -6/Zion | Saw the warning signs outside the Deep Caves entrance 10770 | -6/Zion | Entered Deep Caves 10770 | -6/Deep Caves | Accompanied by 3 allies 10906 | -6/Deep Caves | Z-Facility disabled 10910 | -6/Deep Caves | Attacked by Z-Imprinter 10945 | -6/Deep Caves | Destroyed Z-Imprinter 10981 | -6/Deep Caves | Found Prototype Protection 10981 | -6/Deep Caves | Identified Zio. Weapon Casing 11099 | -6/Deep Caves | Found Zio. Weapon Casing 11124 | -6/Deep Caves | Identified RU-N14's Throwing Claymores (x4) 11170 | -6/Deep Caves | Lost 5 parts (2n1u2w) 11219 | -6/Deep Caves | Found Zio. Weapon Casing 11276 | -6/Deep Caves | Found Zio. Weapon Casing 11303 | -6/Deep Caves | Found Zio. Weapon Casing 11381 | -6/Deep Caves | Found Zio. Weapon Casing 11717 | -6/Deep Caves | Discovered new exit (range 7) 11962 | -6/Deep Caves | Spotted as-58588 12000 | -6/Deep Caves | Destroyed as-58588 12010 | -6/Deep Caves | Found Corrupted GOLEM Unit 12029 | -6/Deep Caves | Lost 4 parts (4u) 12184 | -6/Deep Caves | Triggered Deep Caves wall 12184 | -6/Deep Caves | Spotted AS-99990 12184 | -6/Deep Caves | Spotted AS-00992 12188 | -6/Deep Caves | Exposed GOLEM chamber 12192 | -6/Deep Caves | Destroyed AS-00992 12237 | -6/Deep Caves | Lost 7 parts (1p3n3u) 12239 | -6/Deep Caves | Destroyed 35 combat bots 12243 | -6/Deep Caves | Core integrity fell below 50% 12244 | -6/Deep Caves | Build established: Mutant 12249 | -6/Deep Caves | Destroyed AS-99990 12256 | -6/Deep Caves | System corruption reached 10% 12286 | -6/Deep Caves | Lost 5 parts (1p2u2w) 12639 | -6/Deep Caves | Spotted as-23848 12671 | -6/Deep Caves | Core integrity fell below 20% 12674 | -6/Deep Caves | Released all parts (2) 12684 | -6/Deep Caves | Entered Proximity Caves 12772 | -5/Proximity Caves | Destroyed by Y-64 Sentinel with Wave Gun Last Messages --------------- 12674_ Released Hcp. Storage Unit. 12674_ Released RU-N14's Throwing Claymores. 12674_ Dropped Imp. EM Pulse Cannon. 12675_ Extracted 1 energy. 12676_ Acquired Zio. Biocell. LOCATION=UNKNOWN GOAL=ESCAPE 12684_ Integrated Corrupted GOLEM Unit (+4). 12684_ Complication: Energy sink damages Corrupted GOLEM Unit (-73). 12685_ GOLEM Unit beginning Asb. Alloy Leg integration. 12692_ #PW,B44NCB|HJW/CSD OZJU=BC3Y8L=TG&DC 12710_ System corrupted: Heat flow error (+215). 12727_ System corrupted: Heat flow error (+199). 12772_ Searching scrap... 12772_ Found Arm. Huge Wheel. 12772_ Found Mak. Flight Unit. 12772_ Found Imp. Dynamic Insulation System. 12772_ Found Wave Gun. 12772_ Found Authchip [Power]. 12772_ Found 40 Matter. Map ----- +----------------------------------------------------+ | ??? # #?????????????????????????????????????? | | #??? #?????????????????????????????????????? | | ###? ##????????????????????????????????????? | | ?? # #????????????????????????????????????? | | ???? #?########????????????????????????????? | | #???## ??## # ##???????????????????????????? | | #??## #??## # ##??????????????????????????? | | #### ##### # ##?????????????????????????? | | #?????????????????????????? | | #### # ## # #?????????????????????????? | | ##?# ############ #?????????????????????????? | | ???#####??????????# ## #?????????????????????????? | | ??????????????????# ## #?????????????????????????? | | ??????????????????# ## #?????????????????????????? | | ??????????????????# ## #?????#???????????????????? | | ?????????????????## ## #???? ???????????????????? | | ????????????????## ## #???? #???????????????????? | | ????????????????# #???? #???????????????????? | | ????????????????## ##### #???????????????????? | | ?????????????????# ## #???????????????????? | | ?????????????????# # #???????????????????? | | ?????????????????# ## #???????????????????? | | ?????????????????# ## ##???????????????????? | | ????????????# ? ?#### ##?????? ????????? | | ?????????????# ####=## ????????? | | ?????????? ggg !@[ ????????? | | ??????????????# # =! Y ????????? | | ?????????????? ######## ????????? | | ????????????? ????????#### ?????????? | | ????????????## ????????????? ?????????? | | ?????????????## ?????????????? ??????????? | | ??????????????## ## ???????????????? #?????????? | | ???????????????? ?? ????????????????? #??????????? | | ?????????????????????????????????????????????????? | | ?????????????????????????????????????????????????? | | ?????????????????????????????????????????????????? | | ?????????????????????????????????????????????????? | | ?????????????????????????????????????????????????? | | ?????????????????????????????????????????????????? | | ?????????????????????????????????????????????????? | | ?????????????????????????????????????????????????? | | ?????????????????????????????????????????????????? | | ?????????????????????????????????????????????????? | | ?????????????????????????????????????????????????? | | ?????????????????????????????????????????????????? | | ?????????????????????????????????????????????????? | | ?????????????????????????????????????????????????? | | ?????????????????????????????????????????????????? | | ?????????????????????????????????????????????????? | | ?????????????????????????????????????????????????? | +----------------------------------------------------+ Best States ------------- Heat Dissipation 90 Energy Generation 38 Energy Capacity 1090 Matter Stores 300 Matter Capacity 300 Sight Range 16 Terrain Scan Range 16 Terrain Scan Density 210 Armor Coverage 750 Resistance: TH 30 Core Shielding 20 Weapon Shielding 100 Evasion (%) 50 Targeting Accuracy 8 Recoil Reduction 4 Offensive Hacking 10 Authchip Count 1 Item Schematics ----------------- Hcp. Storage Unit | -10/Materials | Hacked Huge Storage Unit | -10/Materials | Hacked Lgt. Armor Plating | -9/Materials | Scanalyzed Seismic Detector | -8/Materials | Scanalyzed Flail | -8/Materials | Scanalyzed Machine Analyzer | -8/Materials | Scanalyzed Hacking Suite | -8/Materials | Hacked Combat Drone Bay | -7/Data Miner | Free Lgt. Regenerative Plating | -7/Data Miner | Free Cld. Cesium-ion Thruster | -7/Data Miner | Free Thermal Defense Suite | -7/Data Miner | Free Imp. Heavy Laser | -7/Data Miner | Free Imp. Focal Shield | -7/Data Miner | Free Arm. Medium Treads | -7/Data Miner | Free Hyp. Coil Gun | -7/Data Miner | Free Enh. Gauss Cannon | -7/Data Miner | Free Imp. Fusion Compressor | -7/Data Miner | Free Lgt. Fission Core | -6/Zion | Archive Phasing Sabre | -6/Zion | Archive Matter Compressor | -6/Zion | Archive Adv. Trap Extractor | -6/Zion | Archive Phase Shifter | -6/Zion | Archive Adv. Shield Generator | -6/Zion | Archive Adv. Heat Sink | -6/Zion | Archive Adv. Coolant Injector | -6/Zion | Archive Centrium Wheel | -6/Zion | Archive Magnetic Acceleration Cannon | -6/Zion | Archive Hvy. Machine Gun | -6/Zion | Archive Hvy. Phase Cannon | -6/Zion | Archive Imp. Target Analyzer | -6/Zion | Archive Robot Schematics ------------------ B-48 Gladiator | -7/Data Miner | Free G-47 Trooper | -7/Data Miner | Free M-22 Extractor | -7/Data Miner | Free E-15 Imp | -7/Data Miner | Free L-41 Fighter | -7/Data Miner | Free G-50 Soldier | -6/Zion | Archive M-28 Smith | -6/Zion | Archive X-77 Beamer | -6/Zion | Archive Fabricated ------------ Nothing Alien Tech Used ----------------- None Achievements -------------- None Challenges ------------ None Game ------ Seed BackupSwarmStorage Manual? 0 Play Time 01:44:32 Cumulative 193.1 hours Start 2022.09.26 @ 14:16:56 End 2022.09.26 @ 16:05:51 Sessions 1 Manual Loads 0 Difficulty Rogue Special Mode None Game No. 78 Rogue 78 Adventurer 0 Explorer 0 Win Type - Total 8 Types 3/1/2/1/1/0/0/0/0 Lore% 80 Gallery% 74 Achievement% 64 Wizard Run 0 Options --------- ASCII 0 Keyboard 1 Movement Numpad Keybinds 0 Fullscreen 2 Font 18/X11 Map View 76x50 Tactical HUD 1 Map Filters NONE Filters NONE Steam 1 RUN: 7f477121-d621-40bd-a4a3-2070146fefdd